fUSD/lending_fUSD_20250606
["ID","MTS","AMOUNT","RATE_DAILY","PERIOD"]
[364801591,1749245482541,-623.94,0.00028876,5]
[364801592,1749245482552,-1791.7,0.00028876,5]
[364801593,1749245482562,-1965.72,0.00028876,5]
[364801594,1749245482571,-1996.69,0.00028876,5]
[364801595,1749245482581,-3288.44,0.00028876,5]
[364801596,1749245482590,-1032.5,0.00028876,5]
[364801597,1749245482600,-771.7,0.00028876,5]
[364801598,1749245482610,-1627.97,0.00028876,5]
[364801599,1749245482620,-670.33,0.00028876,5]
[364801600,1749245482630,-575.24,0.00028876,5]
[364801601,1749245482640,-4755.29,0.00028876,5]
[364801602,1749245482651,-2179.19,0.00028876,5]
[364801603,1749245482661,-1950.69,0.00028876,5]
[364801604,1749245482671,-622.31,0.00028876,5]
[364801605,1749245482681,-888.42,0.00028876,5]
[364801606,1749245482692,-2483.76,0.00028876,5]
[364801607,1749245482702,-1453.42,0.00028876,5]
[364801608,1749245482712,-683.26,0.00028876,5]
[364801609,1749245482722,-480.0,0.00028876,5]
[364801610,1749245482732,-747.35,0.00028876,5]
[364801611,1749245482742,-5842.1,0.00028876,5]
[364801612,1749245482752,-5650.54,0.00028876,5]
[364801613,1749245482762,-2077.01,0.00028876,5]
[364801614,1749245482772,-950.27,0.00028876,5]
[364801615,1749245482782,-734.81,0.00028876,5]
[364801616,1749245482792,-480.0,0.00028876,5]
[364801617,1749245482802,-480.0,0.00028876,5]
[364801618,1749245482811,-638.71,0.00028876,5]
[364801619,1749245482822,-958.16,0.00028876,5]
[364801620,1749245482833,-1117.56,0.00028876,5]
[364801621,1749245482844,-3319.06,0.00028876,5]
[364801622,1749245482853,-10869.49,0.00028876,5]
[364801623,1749245482863,-480.0,0.00028876,5]
[364801624,1749245482874,-992.85,0.00028876,5]
[364801625,1749245482885,-530.29,0.00028876,2]
[364801626,1749245482896,-1496.95,0.00028876,5]
[364801627,1749245482907,-516.46,0.00028876,5]
[364801628,1749245482918,-63805.06,0.00028876,5]
[364801629,1749245482929,-498.71,0.00028876,5]
[364801630,1749245482939,-480.0,0.00028876,5]
[364801631,1749245482950,-2087.41,0.00028876,5]
[364801632,1749245482960,-480.0,0.00028876,2]
[364801633,1749245482969,-510.56807864,0.00028876,5]
[364801634,1749245482979,-154.149509,0.00028876,7]
[364801635,1749245482990,-874.11,0.00028876,5]
[364801636,1749245483001,-150.0,0.00028877,7]
[364801637,1749245483013,-150.0,0.00028882,7]
[364801638,1749245483028,-212.14241746,0.00028884,7]
[364801639,1749245483039,-271.23323775,0.00028884,7]
[364801640,1749245483050,-150.0,0.00028889,7]
[364801641,1749245483059,-150.0,0.00028889,7]
[364801642,1749245483069,-400.0,0.000289,10]
[364801643,1749245483079,-1600.0,0.000289,10]
[364801644,1749245483088,-212.14241746,0.00028916,7]
[364801645,1749245483098,-271.23323775,0.00028916,7]
[364801646,1749245483108,-150.0,0.00028932,7]
[364801647,1749245483118,-150.0,0.00028932,7]
[364801648,1749245483129,-150.0,0.00028938,7]
[364801649,1749245483139,-150.0,0.00028939,7]
[364801650,1749245483149,-150.0,0.0002894,2]
[364801651,1749245483160,-212.14241746,0.00028948,7]
[364801652,1749245483170,-271.23323775,0.00028948,7]
[364801653,1749245483179,-363.07586443,0.00028959,30]
[364801654,1749245483189,-769.37504606,0.00028959,30]
[364801655,1749245483199,-1093.17,0.0002896,2]
[364801656,1749245483209,-150.0,0.00028976,7]
[364801657,1749245483219,-150.0,0.00028976,7]
[364801658,1749245483229,-800.0745057,0.0002898,2]
[364801659,1749245483239,-114765.10741855,0.0002898,2]
[364801660,1749245483254,-19240.30573135,0.0002898,2]
[364801661,1749245483264,-212.14241746,0.00028981,7]
[364801662,1749245483276,-271.23323775,0.00028981,7]
[364801663,1749245483286,-150.0,0.00028981,7]
[364801664,1749245483295,-150.0,0.00029,100]
[364801665,1749245483305,-3235.0,0.00029,2]
[364801666,1749245483315,-9025.23939096,0.00029,2]
[364801667,1749245483325,-4538.23268026,0.00029,2]
[364801668,1749245483335,-177811.17867216,0.00029,3]
[364801678,1749245587574,2556.092557,7.945e-05,2]
[364801681,1749245632362,2509.65411681,0.00035616,120]
[364801682,1749245670366,150.0,0.000195,5]
[364801683,1749245715783,170.66,0.0002578,120]
[364801684,1749245715976,170.66,0.00032225,120]
[364801685,1749245767464,182.85,0.00016712,2]
[364801687,1749245837385,14153.05,0.00035616,120]
[364801691,1749245930689,3315.35,0.00035616,120]
[364801692,1749246070087,250.0,0.00019,2]
[364801693,1749246078430,1000.0,0.00035616,120]
[364801695,1749246138505,217.63,0.00035616,120]
[364801700,1749246203361,300.0,0.00033904,120]
[364801701,1749246213254,2000.0,0.00035616,120]
[364801702,1749246220350,2000.0,0.00035616,120]
[364801703,1749246223815,2000.0,0.00035616,120]
[364801704,1749246229309,2000.0,0.00035616,120]
[364801705,1749246242735,2000.0,0.00035616,120]
[364801706,1749246252174,2000.0,0.00035616,120]
[364801707,1749246265682,822.39,0.00025387,120]
[364801708,1749246267420,2000.0,0.00035616,120]
[364801709,1749246270764,2000.0,0.00035616,120]
[364801711,1749246304556,2000.0,0.00035616,120]
[364801712,1749246308867,2000.0,0.00035616,120]
[364801713,1749246322433,2000.0,0.00035616,120]
[364801714,1749246331360,2000.0,0.00035616,120]
[364801715,1749246337335,2000.0,0.00035616,120]
[364801717,1749246382576,212.75,0.00013699,2]
[364801742,1749246504499,1000.0,0.00035616,120]
[364801751,1749246631918,-303.51135824,0.0001939,2]
[364801753,1749246631929,-1706.9000001,0.0001939,2]
[364801761,1749246631989,-3920.42897269,0.0001939,2]
[364801763,1749246631999,-159.69768187,0.00020187,2]
[364801765,1749246632009,-212.75,0.00020187,2]
[364801767,1749246632019,-300.0,0.00021,2]
[364801769,1749246632029,-1200.0,0.00021878,2]
[364801771,1749246632038,-300.0,0.00021878,2]
[364801773,1749246632048,-300.0,0.00021879,2]
[364801775,1749246632058,-7149.82175447,0.0002188,2]
[364801777,1749246632067,-5000.0,0.0002188,2]
[364801779,1749246632076,-5000.0,0.0002188,2]
[364801781,1749246632085,-5000.0,0.0002188,2]
[364801783,1749246632095,-5000.0,0.0002188,2]
[364801785,1749246632104,-10996.7755562,0.00022754,2]
[364801787,1749246632113,-350.0,0.00023,2]
[364801789,1749246632122,-420.0,0.00023777,2]
[364801792,1749246632132,-1680.0,0.00023889,2]
[364801794,1749246632141,-1190.5,0.00024052,2]
[364801796,1749246632149,-479.81109565,0.000246,11]
[364801798,1749246632158,-479.81109543,0.000246,11]
[364801799,1749246632167,-479.81109543,0.000246,11]
[364801801,1749246632176,-479.81109543,0.000246,11]
[364801803,1749246632185,-479.81109543,0.000246,11]
[364801805,1749246632194,-479.81109543,0.000246,11]
[364801807,1749246632203,-479.81109543,0.000246,11]
[364801809,1749246632212,-9195.88430339,0.0002489,2]
[364801811,1749246632221,-328.14,0.00024913,2]
[364801813,1749246632230,-150.0,0.00024936,2]
[364801815,1749246632239,-400.0,0.00025,2]
[364801817,1749246632248,-1135.86,0.00025,2]
[364801819,1749246632257,-150.99,0.00025,2]
[364801821,1749246632266,-9999.99,0.00025,2]
[364801823,1749246632275,-150.99,0.00025,2]
[364801825,1749246632285,-390.25,0.00025,2]
[364801827,1749246632294,-9999.99,0.00025,2]
[364801829,1749246632303,-479.81109543,0.00025003,12]
[364801831,1749246632312,-206.78,0.00025048,2]
[364801833,1749246632322,-150.0,0.00025105,7]
[364801835,1749246632331,-631.03,0.00025378,2]
[364801836,1749246632341,-19689.03258408,0.00025516,2]
[364801838,1749246632350,-7296.06,0.00025529,2]
[364801840,1749246632360,-23900.0,0.00025546,2]
[364801842,1749246632369,-479.81109543,0.0002559,13]
[364801844,1749246632379,-1000.0,0.00025624,2]
[364801846,1749246632388,-369.05,0.00025624,2]
[364801848,1749246632398,-299.99,0.00025624,7]
[364801850,1749246632407,-499.99,0.00025624,2]
[364801852,1749246632416,-1100.12,0.00025624,5]
[364801854,1749246632425,-7980.53,0.00025624,2]
[364801856,1749246632435,-999.99,0.00025624,2]
[364801858,1749246632444,-2472.31,0.00025624,2]
[364801860,1749246632453,-12426.61,0.00025624,2]
[364801862,1749246632463,-9405.77278932,0.00025654,2]
[364801864,1749246632472,-166.36,0.00025684,2]
[364801866,1749246632481,-1000.0,0.00025754,2]
[364801868,1749246632491,-1000.0,0.00025755,2]
[364801870,1749246632501,-200.0,0.00025789,2]
[364801872,1749246632512,-250.0,0.00025802,2]
[364801874,1749246632521,-587.0,0.00025841,2]
[364801876,1749246632530,-328.14,0.00025847,2]
[364801878,1749246632539,-552.94,0.00025884,30]
[364801880,1749246632549,-1599.78188236,0.00025915,2]
[364801882,1749246632559,-694.82589275,0.00025932,2]
[364801884,1749246632571,-205.0,0.00025962,2]
[364801886,1749246632580,-200.0,0.00025983,2]
[364801888,1749246632590,-9187.5034496,0.00026014,2]
[364801896,1749246632653,-218.2693397,0.00026014,2]
[364801899,1749246632662,-601.56,0.00026033,2]
[364801902,1749246632674,-479.81109543,0.00026176,14]
[364801905,1749246632683,-150.0,0.00026177,2]
[364801908,1749246632692,-150.0,0.00026225,2]
[364801910,1749246632702,-1190.5,0.00026316,2]
[364801912,1749246632711,-150.0,0.00026324,2]
[364801914,1749246632720,-151.0,0.00026335,2]
[364801916,1749246632729,-1957.856,0.00026335,2]
[364801918,1749246632739,-1000.0,0.00026335,2]
[364801920,1749246632748,-151.0,0.00026335,2]
[364801922,1749246632757,-500.0,0.00026335,2]
[364801924,1749246632766,-151.0,0.00026335,2]
[364801926,1749246632776,-500.0,0.00026335,2]
[364801928,1749246632785,-500.0,0.00026335,2]
[364801930,1749246632794,-500.0,0.00026335,2]
[364801932,1749246632803,-500.0,0.00026335,2]
[364801933,1749246632811,-500.0,0.00026335,2]
[364801936,1749246632821,-500.0,0.00026335,2]
[364801937,1749246632830,-500.0,0.00026335,2]
[364801939,1749246632840,-500.0,0.00026335,2]
[364801941,1749246632849,-500.0,0.00026335,2]
[364801944,1749246632858,-500.0,0.00026335,2]
[364801945,1749246632867,-500.0,0.00026335,2]
[364801947,1749246632876,-500.0,0.00026335,2]
[364801949,1749246632885,-500.0,0.00026335,2]
[364801951,1749246632895,-500.0,0.00026335,2]
[364801953,1749246632904,-207.4,0.00026335,2]
[364801955,1749246632913,-9405.7727893,0.00026374,2]
[364801957,1749246632922,-2030.296672,0.0002639,2]
[364801959,1749246632931,-150.0,0.00026432,2]
[364801961,1749246632940,-2105.41764886,0.00026445,2]
[364801963,1749246632949,-171.1,0.00026451,2]
[364801965,1749246632958,-2183.31810187,0.000265,2]
[364801967,1749246632967,-169.27,0.00026533,2]
[364801968,1749246632976,-150.0,0.00026549,2]
[364801970,1749246632986,-2264.10087164,0.00026555,2]
[364801972,1749246632995,-150.0,0.00026599,2]
[364801974,1749246633004,-2347.87260389,0.0002661,2]
[364801976,1749246633013,-150.0,0.00026647,2]
[364801978,1749246633023,-2434.74389024,0.00026665,2]
[364801980,1749246633032,-212.75,0.00026676,2]
[364801982,1749246633042,-150.0,0.0002668,2]
[364801983,1749246633051,-2524.82941417,0.0002672,2]
[364801985,1749246633061,-9405.7727893,0.00026734,2]
[364801987,1749246633070,-166.36,0.00026744,2]
[364801988,1749246633080,-479.81109543,0.00026762,15]
[364801990,1749246633089,-302.58058728,0.00026775,2]
[364801991,1749246633098,-328.14,0.00026781,2]
[364801994,1749246633108,-150.0,0.00026796,2]
[364801995,1749246633118,-400.0,0.000268,9]
[364801997,1749246633127,-900.0,0.000269,9]
[364802000,1749246633139,-200.0,0.00026924,2]
[364802001,1749246633148,-166.78,0.00026999,2]
[364802003,1749246633157,-150.0,0.00027021,2]
[364802005,1749246633167,-215.56,0.00027079,2]
[364802007,1749246633176,-1000.0,0.00027081,2]
[364802009,1749246633185,-9405.7727893,0.00027094,2]
[364802011,1749246633194,-150.0,0.00027117,2]
[364802013,1749246633204,-150.0,0.0002713,2]
[364802015,1749246633213,-438.0,0.00027181,2]
[364802017,1749246633222,-438.0,0.00027181,2]
[364802019,1749246633231,-438.0,0.00027181,2]
[364802021,1749246633240,-438.0,0.00027181,2]
[364802023,1749246633250,-438.0,0.00027181,2]
[364802025,1749246633259,-150.0,0.00027185,2]
[364802027,1749246633269,-150.0,0.00027191,2]
[364802029,1749246633278,-2500.0,0.00027197,2]
[364802031,1749246633287,-150.0,0.00027197,2]
[364802033,1749246633297,-9584.69991428,0.00027197,2]
[364802034,1749246633306,-150.0,0.0002724,2]
[364802036,1749246633316,-1501.24715302,0.00027287,2]
[364802039,1749246633328,-95185.09773428,0.00027287,2]
[364802041,1749246633338,-500.0,0.00027297,2]
[364802043,1749246633347,-23437.08598797,0.00027297,2]
[364802445,1749246637970,-221.34148271,0.00027187,2]
[364802447,1749246637979,-422.45851694,0.00027297,2]
[364802450,1749246637998,-12199.40149509,0.00027297,2]
[364802452,1749246638008,-87244.49227175,0.00027297,2]
[364802454,1749246638019,-100338.08482825,0.00027297,2]
[364802456,1749246638028,-1000.0,0.00027297,2]
[364802458,1749246638038,-1649.64675162,0.00027297,2]
[364802648,1749246639992,-1252.71985348,0.00027297,2]
[364802650,1749246640004,-405.27546822,0.00027297,2]
[364802661,1749246640099,-1692.35792668,0.00027297,2]
[364802663,1749246640108,-201.23014939,0.000273,7]
[364802665,1749246640117,-150.0,0.00027316,2]
[364802667,1749246640127,-479.81109543,0.00027348,16]
[364802669,1749246640136,-2993.0,0.00027349,23]
[364802671,1749246640146,-13812.3349839,0.00027362,2]
[364802673,1749246640155,-9584.69991423,0.00027372,2]
[364802675,1749246640165,-500.0,0.00027373,2]
[364802677,1749246640174,-521.72942323,0.00027373,2]
[364802679,1749246640184,-502.36872942,0.00027373,2]
[364802681,1749246640193,-508.02413988,0.00027373,2]
[364802683,1749246640203,-500.0,0.00027373,2]
[364802685,1749246640213,-500.0,0.00027373,2]
[364802687,1749246640222,-55249.3399356,0.00027377,2]
[364802689,1749246640232,-2520.04083726,0.00027377,2]
[364802691,1749246640241,-41437.0049517,0.00027386,2]
[364802693,1749246640250,-3780.06125589,0.00027386,2]
[364802695,1749246640259,-152.54,0.00027386,2]
[364802697,1749246640269,-124311.014855,0.00027387,2]
[364802699,1749246640278,-23940.387954,0.00027387,2]
[364802701,1749246640287,-208.13026186,0.00027387,2]
[364802703,1749246640296,-751.03182784,0.00027397,2]
[364802705,1749246640306,-480.0,0.00027397,5]
[364802707,1749246640316,-435.02125896,0.00027397,5]
[364802709,1749246640325,-480.0,0.00027397,5]
[364802711,1749246640334,-480.0,0.00027397,5]
[364802713,1749246640343,-480.0,0.00027397,5]
[364802715,1749246640353,-480.0,0.00027397,5]
[364802717,1749246640361,-480.0,0.00027397,5]
[364802719,1749246640371,-480.0,0.00027397,5]
[364802721,1749246640380,-480.0,0.00027397,5]
[364802723,1749246640389,-163.73286546,0.00027397,5]
[364802724,1749246640398,-480.0,0.00027397,5]
[364802726,1749246640408,-480.0,0.00027397,5]
[364802728,1749246640418,-480.0,0.00027397,5]
[364802730,1749246640428,-480.0,0.00027397,5]
[364802732,1749246640437,-480.0,0.00027397,5]
[364802734,1749246640446,-480.0,0.00027397,5]
[364802736,1749246640456,-480.0,0.00027397,5]
[364802738,1749246640465,-480.0,0.00027397,5]
[364802740,1749246640474,-480.0,0.00027397,5]
[364802742,1749246640483,-480.0,0.00027397,5]
[364802744,1749246640493,-480.0,0.00027397,5]
[364802746,1749246640503,-480.0,0.00027397,5]
[364802748,1749246640512,-480.0,0.00027397,5]
[364802750,1749246640522,-480.0,0.00027397,5]
[364802752,1749246640532,-480.0,0.00027397,5]
[364802754,1749246640541,-600.0,0.00027397,30]
[364802756,1749246640550,-885.44,0.00027397,5]
[364802757,1749246640559,-480.0,0.00027397,5]
[364802760,1749246640569,-500.0,0.00027397,2]
[364802761,1749246640583,-500.0,0.00027397,2]
[364802763,1749246640592,-500.0,0.00027397,2]
[364802765,1749246640602,-500.0,0.00027397,2]
[364802767,1749246640611,-500.0,0.00027397,2]
[364802769,1749246640622,-500.0,0.00027397,2]
[364802771,1749246640631,-500.0,0.00027397,2]
[364802773,1749246640641,-480.0,0.00027397,5]
[364802776,1749246640651,-480.0,0.00027397,5]
[364802778,1749246640664,-480.0,0.00027397,5]
[364802780,1749246640673,-480.0,0.00027397,5]
[364802782,1749246640681,-480.0,0.00027397,5]
[364802784,1749246640690,-480.0,0.00027397,5]
[364802786,1749246640700,-480.0,0.00027397,5]
[364802788,1749246640709,-480.0,0.00027397,5]
[364802789,1749246640718,-480.0,0.00027397,5]
[364802791,1749246640727,-480.0,0.00027397,5]
[364802794,1749246640737,-480.0,0.00027397,5]
[364802795,1749246640748,-480.0,0.00027397,5]
[364802797,1749246640757,-621.89,0.00027397,5]
[364802799,1749246640767,-480.0,0.00027397,5]
[364802802,1749246640777,-480.0,0.00027397,5]
[364802804,1749246640786,-460.0,0.00027397,5]
[364802806,1749246640795,-480.0,0.00027397,5]
[364802807,1749246640804,-500.0,0.00027397,5]
[364802809,1749246640814,-351.21070403,0.00027397,5]
[364802811,1749246640823,-480.0,0.00027397,5]
[364802813,1749246640831,-480.0,0.00027397,5]
[364802815,1749246640840,-493.2,0.00027397,5]
[364802817,1749246640850,-480.0,0.00027397,5]
[364802819,1749246640859,-480.0,0.00027397,5]
[364802821,1749246640868,-480.0,0.00027397,5]
[364802823,1749246640877,-480.0,0.00027397,5]
[364802825,1749246640897,-500.0,0.00027397,5]
[364802827,1749246640906,-500.0,0.00027397,5]
[364802829,1749246640915,-480.0,0.00027397,5]
[364802831,1749246640924,-366.89206707,0.00027397,5]
[364802833,1749246640933,-480.0,0.00027397,5]
[364802835,1749246640942,-480.0,0.00027397,5]
[364802837,1749246640951,-480.0,0.00027397,5]
[364802839,1749246640960,-480.0,0.00027397,5]
[364802841,1749246640969,-480.0,0.00027397,5]
[364802843,1749246640978,-609.30085438,0.00027397,5]
[364802845,1749246640987,-480.0,0.00027397,5]
[364802847,1749246640995,-480.0,0.00027397,5]
[364802849,1749246641004,-480.0,0.00027397,5]
[364802851,1749246641014,-480.0,0.00027397,5]
[364802853,1749246641023,-480.0,0.00027397,5]
[364802855,1749246641032,-480.0,0.00027397,5]
[364802857,1749246641040,-480.0,0.00027397,5]
[364802859,1749246641049,-480.0,0.00027397,5]
[364802861,1749246641058,-480.0,0.00027397,5]
[364802863,1749246641067,-480.0,0.00027397,5]
[364802865,1749246641076,-480.0,0.00027397,5]
[364802866,1749246641084,-480.0,0.00027397,5]
[364802868,1749246641093,-325.40679902,0.00027397,5]
[364802870,1749246641102,-480.0,0.00027397,5]
[364802872,1749246641111,-480.0,0.00027397,5]
[364802874,1749246641120,-480.0,0.00027397,5]
[364802876,1749246641129,-480.0,0.00027397,5]
[364802878,1749246641138,-480.0,0.00027397,5]
[364802880,1749246641147,-480.0,0.00027397,5]
[364802882,1749246641156,-480.0,0.00027397,5]
[364802884,1749246641166,-480.0,0.00027397,2]
[364802886,1749246641175,-480.0,0.00027397,5]
[364802888,1749246641184,-480.0,0.00027397,5]
[364802890,1749246641193,-480.0,0.00027397,5]
[364802892,1749246641202,-480.0,0.00027397,5]
[364802894,1749246641211,-480.0,0.00027397,5]
[364802896,1749246641220,-480.0,0.00027397,5]
[364802898,1749246641229,-1372.88,0.00027397,5]
[364802900,1749246641238,-964.82,0.00027397,5]
[364802902,1749246641247,-480.0,0.00027397,5]
[364802904,1749246641256,-480.0,0.00027397,5]
[364802906,1749246641265,-748.95,0.00027397,5]
[364802908,1749246641274,-489.63464675,0.00027397,5]
[364802909,1749246641283,-480.0,0.00027397,5]
[364802912,1749246641293,-480.0,0.00027397,5]
[364802913,1749246641302,-480.0,0.00027397,5]
[364802915,1749246641312,-480.0,0.00027397,5]
[364802917,1749246641321,-425.70102416,0.00027397,5]
[364802920,1749246641331,-480.0,0.00027397,5]
[364802921,1749246641340,-480.0,0.00027397,5]
[364802923,1749246641350,-480.0,0.00027397,5]
[364802926,1749246641359,-480.0,0.00027397,5]
[364802927,1749246641368,-498.72,0.00027397,5]
[364802930,1749246641378,-480.0,0.00027397,5]
[364802932,1749246641387,-480.0,0.00027397,5]
[364802933,1749246641397,-480.0,0.00027397,5]
[364802935,1749246641406,-480.0,0.00027397,5]
[364802937,1749246641415,-480.0,0.00027397,5]
[364802939,1749246641424,-489.78113232,0.00027397,5]
[364802941,1749246641434,-480.0,0.00027397,5]
[364802943,1749246641443,-480.0,0.00027397,5]
[364802945,1749246641452,-944.11,0.00027397,5]
[364802947,1749246641462,-480.0,0.00027397,5]
[364802949,1749246641471,-521.05,0.00027397,5]
[364802951,1749246641481,-480.0,0.00027397,5]
[364802953,1749246641490,-480.0,0.00027397,5]
[364802955,1749246641501,-1064.79,0.00027397,5]
[364802957,1749246641510,-480.0,0.00027397,5]
[364802959,1749246641521,-480.0,0.00027397,5]
[364802961,1749246641531,-480.0,0.00027397,5]
[364802963,1749246641540,-480.0,0.00027397,5]
[364802965,1749246641550,-480.0,0.00027397,5]
[364802967,1749246641559,-480.0,0.00027397,5]
[364802969,1749246641569,-480.0,0.00027397,5]
[364802971,1749246641581,-1499.94,0.00027397,5]
[364802973,1749246641591,-480.0,0.00027397,5]
[364802975,1749246641600,-480.0,0.00027397,5]
[364802977,1749246641609,-742.55,0.00027397,5]
[364802979,1749246641619,-480.0,0.00027397,5]
[364802981,1749246641629,-480.0,0.00027397,5]
[364802983,1749246641638,-480.0,0.00027397,5]
[364802985,1749246641647,-480.0,0.00027397,5]
[364802987,1749246641657,-480.0,0.00027397,5]
[364802989,1749246641666,-609.61,0.00027397,5]
[364802991,1749246641675,-480.0,0.00027397,5]
[364802993,1749246641686,-480.0,0.00027397,5]
[364802995,1749246641695,-500.31167585,0.00027397,5]
[364802997,1749246641705,-1158.5,0.00027397,5]
[364802999,1749246641714,-480.0,0.00027397,5]
[364803001,1749246641723,-480.0,0.00027397,5]
[364803003,1749246641732,-480.0,0.00027397,5]
[364803005,1749246641740,-480.0,0.00027397,5]
[364803007,1749246641750,-480.0,0.00027397,5]
[364803032,1749246641759,-480.0,0.00027397,5]
[364803034,1749246642004,-480.0,0.00027397,5]
[364803036,1749246642014,-584.43,0.00027397,5]
[364803038,1749246642023,-675.4,0.00027397,5]
[364803040,1749246642032,-220.93,0.00027397,5]
[364803042,1749246642041,-840.68,0.00027397,5]
[364803044,1749246642051,-480.0,0.00027397,5]
[364803046,1749246642060,-490.74532369,0.00027397,5]
[364803048,1749246642069,-480.0,0.00027397,5]
[364803050,1749246642078,-496.54214851,0.00027397,5]
[364803052,1749246642087,-480.0,0.00027397,5]
[364803054,1749246642096,-654.36,0.00027397,5]
[364803056,1749246642105,-480.0,0.00027397,5]
[364803058,1749246642115,-881.61,0.00027397,5]
[364803060,1749246642124,-480.0,0.00027397,5]
[364803062,1749246642133,-480.0,0.00027397,5]
[364803064,1749246642143,-480.0,0.00027397,5]
[364803066,1749246642153,-480.0,0.00027397,5]
[364803068,1749246642162,-514.83,0.00027397,5]
[364803070,1749246642172,-866.2,0.00027397,5]
[364803072,1749246642181,-480.0,0.00027397,5]
[364803074,1749246642191,-480.0,0.00027397,5]
[364803076,1749246642200,-480.0,0.00027397,5]
[364803078,1749246642209,-480.0,0.00027397,5]
[364803080,1749246642217,-480.0,0.00027397,5]
[364803082,1749246642226,-480.0,0.00027397,5]
[364803084,1749246642235,-480.0,0.00027397,5]
[364803086,1749246642244,-480.0,0.00027397,5]
[364803088,1749246642253,-484.77,0.00027397,5]
[364803090,1749246642262,-480.0,0.00027397,5]
[364803092,1749246642271,-480.0,0.00027397,5]
[364803094,1749246642280,-480.0,0.00027397,5]
[364803096,1749246642290,-480.0,0.00027397,5]
[364803098,1749246642299,-480.0,0.00027397,5]
[364803100,1749246642309,-480.0,0.00027397,5]
[364803102,1749246642318,-555.59,0.00027397,5]
[364803104,1749246642327,-480.0,0.00027397,5]
[364803106,1749246642337,-480.0,0.00027397,5]
[364803108,1749246642346,-500.0,0.00027397,5]
[364803110,1749246642355,-500.0,0.00027397,5]
[364803112,1749246642364,-500.0,0.00027397,5]
[364803114,1749246642374,-500.0,0.00027397,5]
[364803115,1749246642383,-480.0,0.00027397,5]
[364803117,1749246642394,-480.0,0.00027397,5]
[364803119,1749246642403,-480.0,0.00027397,5]
[364803121,1749246642412,-480.0,0.00027397,5]
[364803124,1749246642422,-480.0,0.00027397,5]
[364803126,1749246642432,-988.23,0.00027397,5]
[364803128,1749246642442,-480.0,0.00027397,5]
[364803130,1749246642452,-480.0,0.00027397,5]
[364803132,1749246642462,-640.37,0.00027397,5]
[364803134,1749246642472,-480.0,0.00027397,5]
[364803136,1749246642482,-480.0,0.00027397,5]
[364803138,1749246642492,-693.56,0.00027397,5]
[364803141,1749246642502,-480.0,0.00027397,5]
[364803143,1749246642511,-742.17,0.00027397,5]
[364803146,1749246642521,-480.0,0.00027397,5]
[364803148,1749246642530,-425.80705989,0.00027397,5]
[364803150,1749246642541,-1107.36,0.00027397,5]
[364803153,1749246642550,-480.0,0.00027397,5]
[364803156,1749246642559,-486.31721398,0.00027397,5]
[364803158,1749246642569,-480.0,0.00027397,5]
[364803161,1749246642582,-480.0,0.00027397,5]
[364803163,1749246642592,-422.38132047,0.00027397,5]
[364803165,1749246642601,-480.0,0.00027397,5]
[364803167,1749246642610,-480.0,0.00027397,5]
[364803169,1749246642621,-480.0,0.00027397,5]